Workbook

Sheet table 1 (hidden)
B1: Table 1: 2024/25 adjusted national budget
D2: Appropriation (ENE) | F2: Special appropriation | H2: Adjustments appropriation (AENE) | J2: Adjusted appropriation
B4: R thousand
N5: Check
B6: Appropriation by vote | D6: 1102797941 | H6: =+H7+H8+H9+H10+H11+H12+H13 -> 11279804 | J6: =+D6+F6+H6 -> 1114077745 | N6: 11279804 | O6: 1119194391 | P6: =+J6-O6 -> -5116646
B7: Significant and unforeseeable economic and financial events | H7: 0
B8: Unforeseeable and unavoidable expenditure | H8: 2133031
B9: Section 16 of the PFMA | H9: 2100000
B10: Expenditure earmarked in the 2024 Budget for future allocation | H10: 2661000
B11: Roll-overs | H11: 2051349
B12: Self-financing expenditure | H12: 2576424
B13: Declared unspent funds | H13: -242000
B14: Direct charges against the National Revenue Fund | D14: 1027598529 | H14: 9123419 | J14: =+D14+H14 -> 1036721948 | N14: 9123419 | O14: 1036721948 | P14: =+J14-O14 -> 0
B15: Of which:
B16: President and deputy president salaries | D16: 7709 | H16: 0 | J16: =+D16+H16 -> 7709
B17: Members' remuneration | D17: 492893 | H17: 220829 | J17: 713722
B18: Debt-service costs | D18: 382182875 | H18: 6671402 | J18: 388854277
B19: Provincial equitable share: | D19: 600475640 | H19: 0 | J19: 600475640
B20: Public sector salary adjustment | H20: 0 | J20: 0
B21: Unforeseeable and unavoidable expenditure | H21: 0 | J21: 0
B22: Expenditure earmarked in the 2024 Budget speech for future allocation | H22: 0 | J22: 0
B23: General fuel levy sharing with metropolitan municipalities | D23: 16126608 | H23: 0 | J23: 16126608
B24: National Revenue Fund payments | D24: 0 | H24: 2080165 | J24: 2080165
B25: Auditor-General of South Africa | D25: 128578 | H25: 0 | J25: 128578
B26: Skills levy and sector education and training authorities | D26: 24500269 | H26: -6977 | J26: 24493292
B27: Magistrates' salaries | D27: 2495615 | H27: 0 | J27: 2495615
B28: Judges' salaries | D28: 1175214 | H28: 158000 | J28: 1333214
B29: International Oil Pollution Compensation Fund | D29: 13128 | H29: 0 | J29: 13128
N30: Check
B31: Subtotal | D31: =+D6+D14 -> 2130396470 | E31: =+E6+E14 -> 0 | G31: =+G6+G14 -> 0 | H31: =SUM(H14,H6) -> 20403223 | J31: =+J6+J14 -> 2150799693 | N31: 20403223 | O31: 2155916339 | P31: =+N31-H31 -> 0
B32: Provisional allocations not assigned to votes | D32: 570225 | H32: -570225 | J32: =+D32+H32 -> 0
B33: Contingency reserve | D33: 5000000 | H33: -5000000 | J33: =+D33+H33 -> 0
B34: National government projected underspending | D34: 0 | H34: -914094 | J34: =+D34+H34 -> -914094
B35: Local government repayment to the National Revenue Fund | D35: 0 | H35: -2000000 | J35: =+D35+H35 -> -2000000 | N35: Check
B36: Total adjustments expenditure estimate | D36: =SUM(D31:D35) -> 2135966695 | E36: 0 | G36: 0 | H36: 11918904 | I36: 0 | J36: 2147885599 | N36: 11918904 | O36: 2153002245 | P36: =+J36-O36 -> -5116646
B37: Special Appropriation Bill, 2024 | D37: 0 | F37: 5116646 | H37: 0 | J37: =+D37+F37+H37 -> 5116646
B38: Total estimate expenditure | D38: =+D36+D37 -> 2135966695 | E38: 0 | F38: 5116646 | G38: 0 | H38: 11918904 | I38: 0 | J38: 2153002245 | N38: 11918904 | O38: 2153002245
B39: Main budget revenue | D39: =SUM(D40:D42) -> 1815020326 | F39: =SUM(F40:F42) -> 0 | H39: =SUM(H40:H42) -> -17651967.24 | J39: =+D39+H39 -> 1797368359 | N39: =+N40+N41+N42 -> 1797368359 | O39: =+O40+O41+O42 -> 1797368359 | P39: =+N39-O39 -> -0.3320481777
B40: Tax revenue | D40: 1863034832 | F40: 0 | H40: -22271230.11 | J40: =+D40+H40 -> 1840763602 | N40: 1840763602 | O40: 1840763602 | P40: -0.4218349457
B41: Non-tax revenue | D41: 41856389.23 | F41: 0 | H41: 4622483.06 | J41: =+D41+H41 -> 46478872.29 | N41: 46478872.29 | O41: 46478872 | P41: 0.2924409658
B42: Less: Estimate of Southern Africa Customs Union payments | D42: -89870895.02 | F42: 0 | H42: -3220.185688 | J42: =+D42+H42 -> -89874115.2 | N42: -89874115.2 | O42: -89874115 | P42: -0.2026541233
P43: 0
B44: Budget balance | D44: =+D39-D38 -> -320946369.1 | E44: =+E39-E36 -> 0 | F44: =+F39-F38 -> -5116646 | G44: =+G39-G36 -> 0 | H44: =+H39-H38 -> -29570871.24 | I44: 0 | J44: -355633886.3 | N44: =+D44+H44+F44 -> -355633886.3 | O44: =+O39-O36 -> -355633886 | P44: -0.3320481777
N45: -355633886
N46: =+N45-J44 -> 0.3235521317 | O46: Deviation

Sheet Table 1
B1: Table 1: 2025/26 Adjusted National Budget
D2: Appropriation (ENE) | F2: Special appropriation | I2: Adjustments appropriation (AENE) | K2: Adjusted appropriation
B4: R thousand
B6: Appropriation by vote | D6: 1172207412 | I6: =+I7+I9+I10+I8+I11+I13+I12+I14 -> 10097083 | K6: =+D6+I6 -> 1182304495
B7: Significant and unforeseeable economic and financial events | I7: 0
B8: Appropriation of funds for expenditure announced by the minister during the tabling of the annual budget | I8: 5377336
B9: Unforeseeable and unavoidable expenditure | I9: 1601672
B10: Section 16 of the Public Finance Management Act (1999) | I10: 0
B11: Rollovers | I11: 5226856
B12: Self-financing expenditure | I12: 4132505
B13: Expenditure of an exceptional nature | I13: 2472339
B14: Declared unspent funds | I14: -8713625
B15: Direct charges against the National Revenue Fund | D15: 1114810583 | I15: 14715943 | K15: =+D15+I15 -> 1129526526
B16: Of which:
B17: President and deputy president salaries | D17: 8098 | I17: 0 | K17: =+D17+I17 -> 8098
B18: Members' remuneration | D18: 519083 | I18: 34017 | K18: 553100
B19: Debt-service costs | D19: 426345611 | I19: -4816962 | K19: 421528649
B20: Provincial equitable share: | D20: 633165959 | I20: 14414852 | K20: 647580811
B21: KwaZulu-Natal: Compensation of employees (correction on the human settlements development grant and the informal settlements upgrading partnership grant to provinces) | I21: 1060 | K21: 1060
B22: Expenditure of an exceptional nature | I22: 20762 | K22: 20762
B23: Expenditure announced in the 2025 Budget | I23: 14393030 | K23: 14393030
B24: General fuel levy sharing with metropolitan municipalities | D24: 16849080 | I24: 0 | K24: 16849080
B25: National Revenue Fund payments | D25: 0 | I25: 4749412 | K25: 4749412
B26: Auditor-General of South Africa | D26: 134338 | I26: 0 | K26: 134338
B27: Public sector-related pension, post-retirement medical and other benefits in terms of statutory and collective agreement obligations | D27: 7900704 | I27: 148380 | K27: 8049084
B28: Guarantees, indemnities and securities: Payment to the South African Reserve Bank | D28: 0 | I28: 118590 | K28: 118590
B29: Skills levy and sector education and training authorities | D29: 26005953 | I29: -27394 | K29: 25978559
B30: Magistrates' salaries | D30: 2630279 | I30: 0 | K30: 2630279
B31: Judges' salaries | D31: 1237762 | I31: 95048 | K31: 1332810
B32: International Oil Pollution Compensation Fund | D32: 13716 | I32: 0 | K32: 13716
B34: Subtotal | D34: =+D6+D15 -> 2287017995 | H34: =+H6+H15 -> 0 | I34: =SUM(I15,I6) -> 24813026 | K34: =+K6+K15 -> 2311831021
B35: Provisional allocations not appropriated | D35: 18711744 | I35: -16950822 | K35: =+D35+I35 -> 1760922
B36: Contingency reserve | D36: 5000000 | I36: 8519265 | K36: =+D36+I36 -> 13519265
B37: National government projected underspending | D37: 0 | I37: -5129752 | K37: =+D37+I37 -> -5129752
B38: Local government repayment to the National Revenue Fund | D38: 0 | I38: -1000000 | K38: =+D38+I38 -> -1000000
B39: Total adjustments expenditure estimate | D39: =SUM(D34:D38) -> 2310729739 | H39: 0 | I39: 10251717 | J39: 0 | K39: 2320981456
B40: Special Appropriation Bill (2025) | D40: 0 | F40: 754527 | I40: 0 | K40: =+D40+F40+I40 -> 754527
B41: Total estimated expenditure | D41: =++D39+D40 -> 2310729739 | F41: =++F39+F40 -> 754527 | I41: =++I39+I40 -> 10251717 | J41: =+J39+J40 -> 0 | K41: =+K39+K40 -> 2321735983
B42: Main budget revenue | D42: =SUM(D43:D45) -> 1949408684 | F42: =SUM(F43:F45) -> 0 | I42: =SUM(I43:I45) -> 19255390 | K42: =+D42+I42 -> 1968664074
B43: Tax revenue | D43: 1985602668 | F43: 0 | I43: 19687900 | K43: =+D43+I43 -> 2005290568
B44: Non-tax revenue | D44: 37358131 | F44: 0 | I44: -432510 | K44: =+D44+I44 -> 36925621
B45: Less: Estimate of Southern African Customs Union payments | D45: -73552115 | F45: 0 | I45: 0 | K45: =+D45+I45 -> -73552115
B47: Budget balance | D47: =SUM(D42-D41) -> -361321055 | E47: 0 | F47: -754527 | G47: 0 | H47: 0 | I47: 9003673 | J47: 0 | K47: -353071909

Sheet Table 2
B2: Table 2: Adjusted appropriations per vote and adjusted estimates of direct charges against the National Revenue Fund
B3: Vote number and title | G3: 2025/26
G4: Adjustments appropriation
G6: Expenditure | M6: Total | O6: Value of
F7: Special | G7: announced | H7: Unforeseeable | I7: Virements | K7: Self- | L7: Other | M7: adjustments | N7: Adjusted | O7: Virements
B8: R thousand | E8: Appropriation | F8: Appropriation | G8: in the budget | H8: /Unavoidable | I8: and shifts | J8: Roll-overs | K8: financing | L8: adjustments | M8: appropriation | N8: appropriation | O8: and shifts
B9: 1 | C9: The Presidency | E9: 739056 | F9: 0 | G9: 0 | H9: 0 | I9: 0 | J9: 0 | K9: 0 | L9: 15719 | M9: =SUM(G9:L9) -> 15719 | N9: =+E9+F9+M9 -> 754775 | O9: 7160
B10: 2 | C10: Parliament 1 | E10: 3067779 | F10: 0 | G10: 0 | H10: 0 | I10: 0 | J10: 0 | K10: 0 | L10: 396847 | M10: =SUM(G10:L10) -> 396847 | N10: 3464626
B11: 3 | C11: Cooperative Governance | E11: 131129228 | F11: 0 | G11: 0 | H11: 496186 | I11: 0 | J11: 42779 | K11: 0 | L11: 955955 | M11: 1494920 | N11: 132624148 | O11: 15325
B12: 4 | C12: Government Communication and Information System | E12: 820281 | F12: 0 | G12: 0 | H12: 0 | I12: 0 | J12: 7074 | K12: 1990 | L12: 0 | M12: 9064 | N12: 829345 | O12: 12447
B13: 5 | C13: Home Affairs | E13: 11060002 | F13: 0 | G13: 470000 | H13: 0 | I13: 0 | J13: 0 | K13: 2500000 | L13: 10039 | M13: 2980039 | N13: 14040041 | O13: 140170
B14: 6 | C14: International Relations and Cooperation | E14: 7090174 | F14: 0 | G14: 0 | H14: 0 | I14: 0 | J14: 0 | K14: 118955 | L14: 100000 | M14: 218955 | N14: 7309129 | O14: 55000
B15: 7 | C15: National School of Government | E15: 228683 | F15: 0 | G15: 0 | H15: 0 | I15: 0 | J15: 0 | K15: 0 | L15: 0 | M15: 0 | N15: 228683
B16: 8 | C16: National Treasury | E16: 29972859 | F16: 0 | G16: 2067440 | H16: 0 | I16: 0 | J16: 0 | K16: 0 | L16: 0 | M16: 2067440 | N16: 32040299 | O16: 174414
B17: 9 | C17: Planning, Monitoring and Evaluation | E17: 509061 | F17: 0 | G17: 0 | H17: 0 | I17: 0 | J17: 5000 | K17: 0 | L17: 0 | M17: 5000 | N17: 514061 | O17: 27400
B18: 10 | C18: Electricity and Energy | E18: 6669290 | F18: 0 | G18: 0 | H18: 0 | I18: 0 | J18: 6162 | K18: 0 | L18: 0 | M18: 6162 | N18: 6675452 | O18: 17099
B19: 11 | C19: Public Service and Administration | E19: 564720 | F19: 0 | G19: 0 | H19: 0 | I19: 0 | J19: 869 | K19: 0 | L19: 0 | M19: 869 | N19: 565589 | O19: 9094
B20: 12 | C20: Public Service Commission | E20: 302010 | F20: 0 | G20: 0 | H20: 0 | I20: 0 | J20: 0 | K20: 0 | L20: 15796 | M20: 15796 | N20: 317806 | O20: 3689
B21: 13 | C21: Public Works and Infrastructure | E21: 7623029 | F21: 0 | G21: 0 | H21: 0 | I21: 0 | J21: 24693 | K21: 0 | L21: 0 | M21: 24693 | N21: 7647722 | O21: 12338
B22: 14 | C22: Statistics South Africa | E22: 2771306 | F22: 0 | G22: 84000 | H22: 0 | I22: 0 | J22: 0 | K22: 0 | L22: 0 | M22: 84000 | N22: 2855306 | O22: 79743
B23: 15 | C23: Traditional Affairs | E23: 195530 | F23: 0 | G23: 0 | H23: 0 | I23: 0 | J23: 0 | K23: 0 | L23: 0 | M23: 0 | N23: 195530
B24: 16 | C24: Basic Education | E24: 35489184 | F24: 0 | G24: 2026000 | H24: 454000 | I24: 0 | J24: 0 | K24: 0 | L24: 289089 | M24: 2769089 | N24: 38258273 | O24: 478492
B25: 17 | C25: Higher Education | E25: 116441707 | F25: 0 | G25: 0 | H25: 0 | I25: 0 | J25: 0 | K25: 0 | L25: 0 | M25: 0 | N25: 116441707 | O25: 201669
B26: 18 | C26: Health | E26: 64807212 | F26: 754527 | G26: 53837 | H26: 40000 | I26: 0 | J26: 40510 | K26: 0 | L26: 229000 | M26: 363347 | N26: 65925086 | O26: 98683
B27: 19 | C27: Social Development | E27: 294055642 | F27: 0 | G27: 0 | H27: 0 | I27: 0 | J27: 2169485 | K27: 0 | L27: -1000000 | M27: 1169485 | N27: 295225127
B28: 20 | C28: Women, Youth and Persons with Disabilities | E28: 1361686 | F28: 0 | G28: 0 | H28: 0 | I28: 0 | J28: 0 | K28: 0 | L28: 0 | M28: 0 | N28: 1361686 | O28: 5794
B29: 21 | C29: Civilian Secretariat for the Police Service | E29: 172245 | F29: 0 | G29: 0 | H29: 0 | I29: 0 | J29: 354 | K29: 0 | L29: 0 | M29: 354 | N29: 172599 | O29: 7000
B30: 22 | C30: Correctional Services | E30: 29221952 | F30: 0 | G30: 0 | H30: 0 | I30: 0 | J30: 0 | K30: 1252 | L30: 0 | M30: 1252 | N30: 29223204 | O30: 3080
B31: 23 | C31: Defence | E31: 57183704 | F31: 0 | G31: 439078 | H31: 0 | I31: 0 | J31: 0 | K31: 1449408 | L31: 0 | M31: 1888486 | N31: 59072190 | O31: 109623
B32: 24 | C32: Independent Police Investigative Directorate | E32: 428556 | F32: 0 | G32: 0 | H32: 0 | I32: 0 | J32: 0 | K32: 0 | L32: 0 | M32: 0 | N32: 428556 | O32: 7051
B33: 25 | C33: Justice and Constitutional Development | E33: 22737541 | F33: 0 | G33: 0 | H33: 147898 | I33: 0 | J33: 14733 | K33: 0 | L33: 45034 | M33: 207665 | N33: 22945206 | O33: 477616
B34: 26 | C34: Military Veterans | E34: 878541 | F34: 0 | G34: 0 | H34: 0 | I34: 0 | J34: 0 | K34: 0 | L34: 0 | M34: 0 | N34: 878541 | O34: 94927
B35: 27 | C35: Office of the Chief Justice | E35: 1515123 | F35: 0 | G35: 104952 | H35: 0 | I35: 0 | J35: 0 | K35: 0 | L35: 0 | M35: 104952 | N35: 1620075 | O35: 1174
B36: 28 | C36: Police | E36: 120889935 | F36: 0 | G36: 0 | H36: 0 | I36: 0 | J36: 0 | K36: 0 | L36: 0 | M36: 0 | N36: 120889935 | O36: 1067069
B37: 29 | C37: Agriculture | E37: 7609653 | F37: 0 | G37: 0 | H37: 0 | I37: 0 | J37: 0 | K37: 0 | L37: 336736 | M37: 336736 | N37: 7946389 | O37: 63064
B38: 30 | C38: Communications and Digital Technologies | E38: 2545626 | F38: 0 | G38: 0 | H38: 0 | I38: 0 | J38: 1004787 | K38: 0 | L38: 0 | M38: 1004787 | N38: 3550413 | O38: 54412
B39: 31 | C39: Employment and Labour | E39: 4153137 | F39: 0 | G39: 132029 | H39: 0 | I39: 0 | J39: 0 | K39: 0 | L39: 0 | M39: 132029 | N39: 4285166 | O39: 49810
B40: 32 | C40: Forestry, Fisheries and the Environment | E40: 9080710 | F40: 0 | G40: 0 | H40: 0 | I40: 0 | J40: 59294 | K40: 4000 | L40: 0 | M40: 63294 | N40: 9144004 | O40: 514651
B41: 33 | C41: Human Settlements | E41: 34042797 | F41: 0 | G41: 0 | H41: 313588 | I41: 0 | J41: 560000 | K41: 0 | L41: -1060 | M41: 872528 | N41: 34915325 | O41: 41626
B42: 34 | C42: Mineral and Petroleum Resources | E42: 2859637 | F42: 0 | G42: 0 | H42: 0 | I42: 0 | J42: 963 | K42: 0 | L42: 0 | M42: 963 | N42: 2860600 | O42: 130000
B43: 35 | C43: Science, Technology and Innovation | E43: 9063745 | F43: 0 | G43: 0 | H43: 0 | I43: 0 | J43: 334000 | K43: 0 | L43: 0 | M43: 334000 | N43: 9397745 | O43: 70750
B44: 36 | C44: Small Business Development | E44: 2918122 | F44: 0 | G44: 0 | H44: 0 | I44: 0 | J44: 0 | K44: 0 | L44: 0 | M44: 0 | N44: 2918122 | O44: 408016
B45: 37 | C45: Sport, Arts and Culture | E45: 6309944 | F45: 0 | G45: 0 | H45: 0 | I45: 0 | J45: 0 | K45: 0 | L45: 0 | M45: 0 | N45: 6309944 | O45: 46902
B46: 38 | C46: Tourism | E46: 2434892 | F46: 0 | G46: 0 | H46: 0 | I46: 0 | J46: 0 | K46: 0 | L46: 0 | M46: 0 | N46: 2434892
B47: 39 | C47: Trade, Industry and Competition | E47: 11071749 | F47: 0 | G47: 0 | H47: 0 | I47: 0 | J47: 0 | K47: 56900 | L47: 0 | M47: 56900 | N47: 11128649 | O47: 230086
B48: 40 | C48: Transport | E48: 95692062 | F48: 0 | G48: 0 | H48: 150000 | I48: 0 | J48: 308649 | K48: 0 | L48: -4338441 | M48: -3879792 | N48: 91812270 | O48: 3187573
B49: 41 | C49: Water and Sanitation | E49: 26678735 | F49: 0 | G49: 0 | H49: 0 | I49: 0 | J49: 0 | K49: 0 | L49: -3296000 | M49: -3296000 | N49: 23382735 | O49: 222634
B50: 42 | C50: Land Reform and Rural Development | E50: 9820567 | F50: 0 | G50: 0 | H50: 0 | I50: 0 | J50: 647504 | K50: 0 | L50: 0 | M50: 647504 | N50: 10468071 | O50: 740314
B51: Total appropriation by vote | E51: =SUM(E9:E50) -> 1172207412 | F51: 754527 | G51: 5377336 | H51: 1601672 | I51: 0 | J51: 5226856 | K51: 4132505 | L51: -6241286 | M51: 10097083 | N51: =SUM(N9:N50) -> 1183059022 | O51: =SUM(O9:O50) -> 8865895
G55: 2025/26
G56: Adjustments appropriation
G58: Expenditure | M58: Total
F59: Special | G59: announced | H59: Unforeseeable | I59: Virements | K59: Self- | L59: Other | M59: adjustments | N59: Adjusted
B60: R thousand | E60: Appropriation | F60: Appropriation | G60: in the budget | H60: /Unavoidable | I60: and shifts | J60: Roll-overs | K60: financing | L60: adjustments | M60: appropriation | N60: appropriation
B61: Plus:
B62: Total direct charges against the National Revenue Fund | E62: =SUM(E63:E75) -> 1114810583 | F62: 0 | G62: 14393030 | H62: 0 | I62: 0 | J62: 0 | K62: 0 | L62: 322913 | M62: 14715943 | N62: 1129526526
B63: President and deputy president salaries (The Presidency) | E63: 8098 | F63: 0 | G63: 0 | H63: 0 | I63: 0 | J63: 0 | K63: 0 | L63: 0 | M63: =SUM(G63:L63) -> 0 | N63: =+E63+F63+M63 -> 8098
B64: Members remuneration (Parliament) | E64: 519083 | F64: 0 | G64: 0 | H64: 0 | I64: 0 | J64: 0 | K64: 0 | L64: 34017 | M64: 34017 | N64: 553100
B65: Debt-service costs (National Treasury) | E65: 426345611 | F65: 0 | G65: 0 | H65: 0 | I65: 0 | J65: 0 | K65: 0 | L65: -4816962 | M65: -4816962 | N65: 421528649
B66: Provincial equitable share (National Treasury) | E66: 633165959 | F66: 0 | G66: 14393030 | H66: 0 | I66: 0 | J66: 0 | K66: 0 | L66: 21822 | M66: 14414852 | N66: 647580811
B67: General fuel levy sharing with metropolitan municipalities (National Treasury) | E67: 16849080 | F67: 0 | G67: 0 | H67: 0 | I67: 0 | J67: 0 | K67: 0 | L67: 0 | M67: 0 | N67: 16849080
B68: National Revenue Fund payments (National Treasury) | E68: 0 | F68: 0 | G68: 0 | H68: 0 | I68: 0 | J68: 0 | K68: 0 | L68: 4749412 | M68: 4749412 | N68: 4749412
B69: Auditor-General of South Africa (National Treasury) | E69: 134338 | F69: 0 | G69: 0 | H69: 0 | I69: 0 | J69: 0 | K69: 0 | L69: 0 | M69: 0 | N69: 134338
B70: Public-sector-related pension, post-retirement medical and other benefits in terms of statutory and collective agreement obligations (National Treasury) | E70: 7900704 | F70: 0 | G70: 0 | H70: 0 | I70: 0 | J70: 0 | K70: 0 | L70: 148380 | M70: 148380 | N70: 8049084
B71: Guarantees, indemnities and securities: Payment to the South African Reserve Bank (National Treasury) | E71: 0 | F71: 0 | G71: 0 | H71: 0 | I71: 0 | J71: 0 | K71: 0 | L71: 118590 | M71: 118590 | N71: 118590
B72: Skills levy and sector education and training authorities (Higher Education) | E72: 26005953 | F72: 0 | G72: 0 | H72: 0 | I72: 0 | J72: 0 | K72: 0 | L72: -27394 | M72: -27394 | N72: 25978559
B73: Magistrates' salaries (Justice and Constitutional Development) | E73: 2630279 | F73: 0 | G73: 0 | H73: 0 | I73: 0 | J73: 0 | K73: 0 | L73: 0 | M73: 0 | N73: 2630279
B74: Judges' salaries (Office of the Chief Justice) | E74: 1237762 | F74: 0 | G74: 0 | H74: 0 | I74: 0 | J74: 0 | K74: 0 | L74: 95048 | M74: 95048 | N74: 1332810
B75: International Oil Pollution Compensation Fund (Transport) | E75: 13716 | F75: 0 | G75: 0 | H75: 0 | I75: 0 | J75: 0 | K75: 0 | L75: 0 | M75: 0 | N75: 13716
B77: Subtotal | E77: =+E51+E62 -> 2287017995 | F77: 754527 | G77: 19770366 | H77: 1601672 | I77: 0 | J77: 5226856 | K77: 4132505 | L77: -5918373 | M77: 24813026 | N77: 2312585548 | R77: 1760922 | S77: =+#REF!-R77 -> 
B78: Provisional allocations not appropriated | E78: 18711744 | F78: 0 | G78: 0 | H78: 0 | I78: 0 | J78: 0 | K78: 0 | L78: -16950822 | M78: =SUM(G78:L78) -> -16950822 | N78: =+E78+M78 -> 1760922
B79: Contingency reserve | E79: 5000000 | F79: 0 | G79: 0 | H79: 0 | I79: 0 | J79: 0 | K79: 0 | L79: 8519265 | M79: 8519265 | N79: 13519265
B80: National government projected underspending | E80: 0 | F80: 0 | G80: 0 | H80: 0 | I80: 0 | J80: 0 | K80: 0 | L80: -5129752 | M80: -5129752 | N80: -5129752
B81: Local government repayment to the National Revenue Fund | E81: 0 | F81: 0 | G81: 0 | H81: 0 | I81: 0 | J81: 0 | K81: 0 | L81: -1000000 | M81: -1000000 | N81: -1000000
B82: Total estimated expenditure | E82: =SUM(E77:E81) -> 2310729739 | F82: =SUM(F77:F81) -> 754527 | G82: 19770366 | H82: 1601672 | I82: 0 | J82: 5226856 | K82: 4132505 | L82: -20479682 | M82: 10251717 | N82: 2321735983 | R82: 0 | S82: =+#REF!-R82 -> 
B83: 1. Amendments to Parliament’s budget are determined independently of the national government’s budget processes in accordance with the Financial Management of Parliament and Provincial Legislatures Act (2009), as amended.

Sheet Table 2.1
B2: Table 2.1: Adjusted appropriations per economic classification
B3: Economic classification | G3: 2025/26
G4: Adjustments appropriation
G6: Expenditure | M6: Total
F7: Special | G7: announced | H7: Unforeseeable | I7: Virements | K7: Self- | L7: Other | M7: adjustments | N7: Adjusted
B8: R thousand | E8: Appropriation | F8: appropriation | G8: in the budget | H8: /Unavoidable | I8: and shifts | J8: Roll-overs | K8: financing | L8: adjustments | M8: appropriation | N8: appropriation
B9: Current payments
B10: Compensation of employees | E10: 219130836 | F10: 0 | G10: 10381 | H10: 10898 | I10: -1678691 | J10: 0 | K10: 0 | L10: 156558 | M10: =SUM(G10:L10) -> -1500854 | N10: =SUM(E10+F10+M10) -> 217629982
B11: Goods and services | E11: 83456661 | F11: 32121 | G11: 582566 | H11: 124646 | I11: 1404803 | J11: 1209741 | K11: 2918462 | L11: 147928 | M11: 6388146 | N11: 89876928
B12: Interest and rent on land | E12: 426658274 | F12: 0 | G12: 0 | H12: 0 | I12: -3995 | J12: 1330 | K12: 0 | L12: -4816962 | M12: -4819627 | N12: 421838647
B13: Total current payments | E13: =SUM(E10:E12) -> 729245771 | F13: 32121 | G13: 592947 | H13: 135544 | I13: -277883 | J13: 1211071 | K13: 2918462 | L13: -4512476 | M13: 67665 | N13: 729345557
B14: Transfers and subsidies
B15: Provinces and municipalities | E15: 944824939 | F15: 590406 | G15: 18524307 | H15: 1140186 | I15: 842 | J15: 303000 | K15: 0 | L15: 2493101 | M15: =SUM(G15:L15) -> 22461436 | N15: =SUM(E15+F15+M15) -> 967876781
B16: Departmental agencies and accounts | E16: 180895455 | F16: 132000 | G16: 132029 | H16: 0 | I16: 2979092 | J16: 341180 | K16: 1199000 | L16: -8313355 | M16: -3662054 | N16: 177365401
B17: Higher education institutions | E17: 53230072 | F17: 0 | G17: 0 | H17: 0 | I17: 0 | J17: 0 | K17: 0 | L17: 0 | M17: 0 | N17: 53230072
B18: Foreign governments and international organisations | E18: 3711339 | F18: 0 | G18: 0 | H18: 0 | I18: -29936 | J18: 0 | K18: 0 | L18: 0 | M18: -29936 | N18: 3681403
B19: Public corporations and private enterprises | E19: 45184461 | F19: 0 | G19: 0 | H19: 0 | I19: -970929 | J19: 0 | K19: 0 | L19: 0 | M19: -970929 | N19: 44213532
B20: Non-profit institutions | E20: 3209131 | F20: 0 | G20: 0 | H20: 0 | I20: 117917 | J20: 0 | K20: 0 | L20: 0 | M20: 117917 | N20: 3327048
B21: Households | E21: 299865789 | F21: 0 | G21: 439078 | H21: 0 | I21: 359943 | J21: 2816989 | K21: 1252 | L21: -851620 | M21: 2765642 | N21: 302631431
B22: Total transfers and subsidies | E22: =SUM(E15:E21) -> 1530921186 | F22: 722406 | G22: 19095414 | H22: 1140186 | I22: 2456929 | J22: 3461169 | K22: 1200252 | L22: -6671874 | M22: 20682076 | N22: 1552325668
B23: Payments for capital assets
B24: Buildings and other fixed structures | E24: 12445110 | F24: 0 | G24: 0 | H24: 313588 | I24: -200947 | J24: 543653 | K24: 13791 | L24: 396847 | M24: =SUM(G24:L24) -> 1066932 | N24: =SUM(E24+F24+M24) -> 13512042
B25: Machinery and equipment | E25: 3885158 | F25: 0 | G25: 82005 | H25: 12354 | I25: 361466 | J25: 10963 | K25: 0 | L25: 1128 | M25: 467916 | N25: 4353074
B26: Heritage assets | E26: 99811 | F26: 0 | G26: 0 | H26: 0 | I26: -33261 | J26: 0 | K26: 0 | L26: 0 | M26: -33261 | N26: 66550
B27: Specialised military assets | E27: 20623 | F27: 0 | G27: 0 | H27: 0 | I27: 0 | J27: 0 | K27: 0 | L27: 0 | M27: 0 | N27: 20623
B28: Biological assets | E28: 6131 | F28: 0 | G28: 0 | H28: 0 | I28: 645 | J28: 0 | K28: 0 | L28: 0 | M28: 645 | N28: 6776
B29: Land and subsoil assets | E29: 407418 | F29: 0 | G29: 0 | H29: 0 | I29: -4769 | J29: 0 | K29: 0 | L29: 0 | M29: -4769 | N29: 402649
B30: Software and other intangible assets | E30: 199882 | F30: 0 | G30: 0 | H30: 0 | I30: 102630 | J30: 0 | K30: 0 | L30: 0 | M30: 102630 | N30: 302512
B31: Total payments for capital assets | E31: =SUM(E24:E30) -> 17064133 | F31: 0 | G31: 82005 | H31: 325942 | I31: 225764 | J31: 554616 | K31: 13791 | L31: 397975 | M31: 1600093 | N31: 18664226
B32: Total payments for financial assets | E32: 9786905 | F32: 0 | G32: 0 | H32: 0 | I32: -2404810 | J32: 0 | K32: 0 | L32: 4868002 | M32: =SUM(G32:L32) -> 2463192 | N32: =+E32+F32+M32 -> 12250097
B33: Subtotal | E33: =SUM(E13+E22+E31+E32) -> 2287017995 | F33: 754527 | G33: 19770366 | H33: 1601672 | I33: 0 | J33: 5226856 | K33: 4132505 | L33: -5918373 | M33: 24813026 | N33: 2312585548
B34: Provisional allocations not appropriated | E34: 18711744 | F34: 0 | G34: 0 | H34: 0 | I34: 0 | J34: 0 | K34: 0 | L34: -16950822 | M34: =SUM(G34:L34) -> -16950822 | N34: =+E34+M34 -> 1760922
B35: Contingency reserve | E35: 5000000 | F35: 0 | G35: 0 | H35: 0 | I35: 0 | J35: 0 | K35: 0 | L35: 8519265 | M35: 8519265 | N35: 13519265
B36: National government projected underspending | E36: 0 | F36: 0 | G36: 0 | H36: 0 | I36: 0 | J36: 0 | K36: 0 | L36: -5129752 | M36: -5129752 | N36: -5129752
B37: Local government repayment to the National Revenue Fund | E37: 0 | F37: 0 | G37: 0 | H37: 0 | I37: 0 | J37: 0 | K37: 0 | L37: -1000000 | M37: -1000000 | N37: -1000000
B38: Total estimated expenditure | E38: =SUM(E33:E37) -> 2310729739 | F38: 754527 | G38: 19770366 | H38: 1601672 | I38: 0 | J38: 5226856 | K38: 4132505 | L38: -20479682 | M38: 10251717 | N38: 2321735983

Sheet Table 3
B2: Table 3: Appropriation of funds for expenditure announced by the minister during the tabling of the annual budget
B3: Vote and description of expenditure | D3: R thousand
B4: 5 | C4: Home Affairs | D4: 470000
C5: Digitisation and human resources capacity building
B6: 8 | C6: National Treasury | D6: 2067440
C7: Allocation to the urban development financing grant for the metro trading services reform
B8: 14 | C8: Statistics South Africa | D8: 84000
C9: Strengthening capabilities
B10: 16 | C10: Basic Education | D10: =2010000+16000 -> 2026000
C11: R2.010 billion for the early childhood development grant and R16 million for the eCares system, of which R4.729 million is for goods and services, R10.381 million is for compensation of employees and R890 000 is for payments for capital assets
B12: 18 | C12: Health | D12: =22466+31371 -> 53837
C13: Health facility revitalisation grant (Western Cape): Belhar Regional Hospital (R22.466 million) and Klipfontein Regional Hospital (R31.371 million)
B14: 23 | C14: Defence | D14: 439078
C15: Early retirement costs (financial incentives and medical continuation)
B16: 27 | C16: Office of the Chief Justice | D16: 104952
C17: Strengthening capabilities
B18: 31 | C18: Employment and Labour | D18: =25288+106741 -> 132029
C19: Hosting and rollout of the National Dialogue, including payment to the National Economic Development and Labour Council for the first convention, and operating costs for the secretariat
B20: Provincial government | D20: =+D22 -> 14393030
B21: 8 | C21: National Treasury
C22: Provincial equitable share | D22: =3043530+6705500+772000-772000+5144000-500000 -> 14393030
C23: R3.043 530 billion for provincial education departments to cover compensation of employees, R6.705 500 billion for provincial health departments to cover compensation of employees and expenditure on goods and services, and R4.644 billion to accommodate population changes that affect provincial equitable share allocations
B25: Total | D25: =SUM(D4:D20) -> 19770366
C27: PES: R3.043 530 billion for Provincial Education departments to cover compensation of employees, R6.705 500 billion for Provincial Health departments to cover compensation of employees as well as expenditure on goods and services, | D27: =3043530+6705500 -> 9749030

Sheet Table 4
B2: Table 4: Unforeseeable and unavoidable expenditure
B3: Vote and description of expenditure | D3: R thousand
B4: 3 | C4: Cooperative Governance | D4: 496186
C5: Funding for the municipal disaster recovery grant for the reconstruction and rehabilitation of municipal infrastructure damaged by floods in Eastern Cape
B6: 16 | C6: Basic Education | D6: =100000+354000 -> 454000
C7: Funding for the education infrastructure grant for the rehabilitation of schools damaged by floods (R100 million for Eastern Cape and R354 million for KwaZulu-Natal)
B8: 18 | C8: Health | D8: 40000
C9: Funding for the health facility revitalisation grant for the reconstruction and rehabilitation of infrastructure damaged by floods in Eastern Cape
B10: 25 | C10: Justice and Constitutional Development | D10: 147898
C11: Funding for the operations of the Madlanga Commission of Inquiry
B12: 33 | C12: Human Settlements | D12: 313588
C13: Additional funding to replenish the emergency housing grant to enable the department to provide emergency housing relief that cannot be accommodated in the 2025/26 main appropriation.
B14: 40 | C14: Transport | D14: 150000
C15: Provincial roads maintenance grant: Roads maintenance component for the reconstruction and rehabilitation of infrastructure damaged by floods in Eastern Cape
B16: Total | D16: =+D4+D6+D8+D10+D12+D14 -> 1601672

Sheet Table 5
B3: Table 5: Rollovers
B4: Vote and description of expenditure | D4: R thousand
B5: 3 | C5: Cooperative Governance | D5: =19300+3100+6615+602+2415+1297+9450 -> 42779
C6: R19.3 million for goods and services for Microsoft software licences, R602 000 for the digitisation of business application system study, R2.415 million for the municipal prototypes pilot and validation, R1.297 million for training on the local government municipal staff regulations and guidelines, R3.1 million towards an electronic records management system for the OR Tambo district municipality, R6.615 million for an electronic performance management system for the Waterberg district municipality, and R9.450 million for Deighton Total Infrastructure Management System software licences
B7: 4 | C7: Government Communication and Information System | D7: =2137+798+759+288+193+503+807+311+295+91+29+666+197 -> 7074
C8: R2.137 million in payments for capital assets such as servers for Tshedimosetso House, LAN infrastructure for provincial offices and mobile screens, and R4.937 million for various campaigns and promotional items
B9: 9 | C9: Planning, Monitoring and Evaluation | D9: 5000
C10: R1.5 million towards payments for capital assets for the FortiGate Next-Generation Firewall, R500 000 for branding and promotional items for the G20 development working group ministerial meeting and R3 million towards goods and services for the development of the Operation Phakisa electronic monitoring and reporting Tool
B11: 10 | C11: Electricity and Energy | D11: =4994+575+593 -> 6162
C12: R4.994 million payment towards venues and facilities for the G20 second energy transitions working group meetings at Cape Town International Convention Centre and Sun City. R1.168 million for integrated national electrification programme non-grid electrification projects and oversight, monitoring and evaluation
B13: 11 | C13: Public Service and Administration | D13: 869
C14: Transfer payment to the Centre for Public Service Innovation for office accommodation
B15: 13 | C15: Public Works and Infrastructure | D15: 24693
C16: Payment towards goods and services for project preparation for various projects in government
B17: 18 | C17: Health | D17: =13714+9157+9682+7957 -> 40510
C18: Payments for capital assets, which include R13.714 million for the construction of Limpopo Central Hospital, R9.157 million for the replacement of Borwa Clinic, R9.682 million for the replacement of Clocolan Clinic and R7.957 million for the translation and production of voice broadcasting messages on noncommunicable diseases risk factors, prevention and management
B19: 19 | C19: Social Development | D19: 2169485
C20: Social assistance transfers: Social relief of distress
B21: 21 | C21: Civilian Secretariat for the Police Service | D21: 354
C22: Purchase of laptops
B23: 25 | C23: Justice and Constitutional Development | D23: 14733
C24: Payment towards outstanding invoices for goods and services rendered to the integrated justice system programme
B25: 30 | C25: Communications and Digital Technologies | D25: 1004787
C26: Payment towards goods and services for services rendered by Broadband Infraco, Sentech and the State Information Technology Agency for phases 1 and 2 of the South Africa Connect rollout
B27: 32 | C27: Forestry, Fisheries and the Environment | D27: =5836+6311+1330+45612+205 -> 59294
C28: R5.836 million towards payments for capital assets for motor vehicles; R6.311 million towards transfers and subsidies for the South African National Biodiversity Institute; R205 000 for the development of a feasibility study; R1.330 million towards interest and rent on land for storage space for used tyres; and R45.612 million towards goods and services such as those rendered by micro collectors, project managers, depot operators and processors, computer services, the facilitation and implementation of the change management strategy, feasibility studies and business plans, as well as payment of outstanding invoices for goods and services
B29: 33 | C29: Human Settlements | D29: =511100+48900 -> 560000
C30: R511.1 million towards payments for capital assets for the construction of temporary residential units through the Emergency Housing Fund and R48.9 million towards goods and services for the multimedia marketing campaign run by the South African Broadcasting Corporation
B31: 34 | C31: Mineral and Petroleum Resources | D31: 963
C32: Purchase of laptops
B33: 35 | C33: Science, Technology and Innovation | D33: =9900+324100 -> 334000
C34: Payment towards transfers and subsidies that include R9.9 million for space science research (economic competitiveness and support package) and R324.1 million for space science research (space infrastructure hub)
B35: 40 | C35: Transport | D35: =303000+3162+173+2314 -> 308649
C36: R173 000 for furniture, computers and office equipment; R303 million for the public transport network grant (conditional allocation to local government); R2.314 million to review and amend regulations in line with the Railway Safety Act (2024); and R6.162 million to cover expenditure on goods and services for the national devolution strategy
B37: 42 | C37: Land Reform and Rural Development | D37: 647504
C38: Payment of an outstanding court order regarding restitution claims in KwaZulu-Natal
B39: Total | D39: =+D37+D35+D33+D31+D29+D27+D25+D23+D21+D19+D17+D15+D13+D11+D9+D7+D5 -> 5226856

Sheet Table 6
B3: Table 6: Self-financing expenditure
B4: Vote and description of expenditure | D4: R thousand
B5: 4 | C5: Government Communication and Information System | D5: 1990
C6: Expenditure for departmental activities, which is defrayed by revenue generated through sublease agreement between the department and the Border Management Authority
B7: 5 | C7: Home Affairs | D7: 2500000
C8: Expenditure incurred by issuing official documents, which is defrayed by revenue generated from issuing the documents
B9: 6 | C9: International Relations and Cooperation | D9: 118955
C10: Expenditure related to construction, refurbishment and acquisition projects in India, Botswana, Denmark, Angola, Ethiopia and Belgium, which is defrayed by revenue generated from the sales of properties in Namibia, Switzerland and Portugal
B11: 22 | C11: Correctional Services | D11: 1252
C12: Expenditure for offender gratuities, which is funded from revenue generated from the hiring out of offender labour
B13: 23 | C13: Defence | D13: =23178+1426230 -> 1449408
C14: Expenditure for defence activities, of which R1.426 230 billion is defrayed from reimbursements from the United Nations, and R23.178 million from the sale of equipment and spares procured through the special defence account
B15: 32 | C15: Forestry, Fisheries and the Environment | D15: 4000
C16: Expenditure for the environmental management inspectorate in the execution of their enforcement duties, which is funded from court orders made at the finalisation of criminal proceedings
B17: 39 | C17: Trade, Industry and Competition | D17: 56900
C18: R56.9 million for unitary payment regarding the public-private partnership for shared campus accommodation, which is funded from unitary payments received from public entities
B19: Total | D19: =SUM(D5:D18) -> 4132505

Sheet Table 7
B2: Table 7: Shifting of funds between votes
B3: Vote and description of expenditure | D3: R thousand
B4: 40 | C4: Transport | D4: =-10050-396847-45034-115708-15796 -> -583435
C5: Shifted R15.719 million to the Presidency, R396.847 million to Parliament, R10.039 to Home Affairs, R100 million to International Relations and Cooperation, R15.796 million to the Public Service Commission, and R45.034 million to Justice and Constitutional Development.
B6: 1 | C6: Presidency | D6: =10050+5669 -> 15719
C7: R10.050 million and R5.669 million shifted from the Department of Transport to cover a budget shortfall on the G20 Social Summit and G20 Leaders Summit respectively.
B8: 2 | C8: Parliament | D8: 396847
C9: Funds shifted from the Department of Transport of which R381.020 million will be utilised for the restoration and rebuilding of Parliament Building and R15.827 million for the Dome Construction: Alternative building.
B10: 5 | C10: Home Affairs | D10: 10039
C11: Funds shifted from the Department of Transport for transfers to the Border Management Authority to cover expenditure related to the G20 Leaders' Summit
B12: 6 | C12: International Relations and Cooperation | D12: 100000
C13: Funds shifted from the Department of Transport to cover a budget shortfall on the G20 Leaders' Summit
B14: 12 | C14: Public Service Commission | D14: 15796
C15: Funds shifted from the Department of Transport to cover a budget shortfall on compensation of employees
B16: 25 | C16: Justice and Constitutional Development | D16: 45034
C17: Funds shifted from the Department of Transport for the Khampepe Commission of Inquiry

Sheet Table 8
B2: Table 8: Expenditure of an exceptional nature
B3: Vote and description of expenditure | D3: R thousand
B4: 3 | C4: Cooperative Governance | D4: 955955
C5: Funding to reconstruct and rehabilitate infrastructure damaged by disasters in 2024/25. These funds are allocated to the municipal disaster recovery grant
B6: 16 | C6: Basic Education | D6: 289089
C7: Funds allocated to the education infrastructure grant to reconstruct and rehabilitate infrastructure damaged by disasters in 2024/25
B8: 18 | C8: Health | D8: 229000
C9: Funds allocated to the health facility revitalisation grant to reconstruct and rehabilitate infrastructure damaged by disasters in 2024/25
B10: 29 | C10: Agriculture | D10: 336736
C11: Funds allocated to the comprehensive agricultural support programme grant (infrastructure) to reconstruct and rehabilitate infrastructure damaged by disasters in 2024/25
B12: 40 | C12: Transport | D12: =2173117-707618-803940 -> 661559
C13: Funds allocated to the provincial roads maintenance grant to reconstruct and rehabilitate infrastructure damaged by disasters in 2024/25
B15: Provincial government | D15: =+D17 -> 20762
B16: 8 | C16: National Treasury
C17: Provincial equitable share | D17: 20762
C18: Funding for KwaZulu-Natal to reconstruct and rehabilitate infrastructure damaged by disasters in 2024/25
B20: Total | D20: =+D4+D6+D8+D10+D12+D15 -> 2493101
C427: a) expenditure that, although known when finalising the estimates of expenditure, could not be accommodated within allocations
C428: b) tariff adjustments and price increases
C429: c) extensions of existing services and the creation of new services that are not unforeseeable and unavoidable
C431: YES
C432: NO

Sheet Table 9
C3: Table 9: Declared unspent funds and projected underspending
C4: Vote and description of expenditure | E4: R thousand
C5: 19 | D5: Social Development | E5: -1000000
D6: Lower than projected spending on social assistance grants and other transfers
C7: 33 | D7: Human Settlements | E7: -1060
D8: Reallocation of funds, of which R863 000 is from the human settlements development grant and R197 000 is from the informal settlements upgrading partnership grant (provinces)
C9: 40 | D9: Transport | E9: =583435-5000000 -> -4416565
D10: Reduction in accumulated unspent grant funds for the South African National Road Agency Limited non-toll road network
C11: 41 | D11: Water and Sanitation | E11: =-3600000+304000 -> -3296000
D12: Delay in the raw water component of the uMkhomazi water project
C13: Total declared unspent funds | E13: =+E5+E7+E9+E11 -> -8713625
C14: National government projected underspending | E14: -5129752
C15: Local government repayment to the National Revenue Fund | E15: -1000000
C16: Total | E16: =+E13+E14+E15 -> -14843377

Sheet Table 10
B2: Table 10: Expenditure outcome for 2024/25 and actual expenditure for 2025/26
B3: Vote number and title | F3: 2024/25 | J3: 2025/26
F4: Outcome | K4: Actual expenditure 1
G5: Apr 24 - | I5: Apr 24 - | L5: Apr 25 -
G6: Sep 24 | I6: Mar 25 | L6: Sep 25
G7: % of | I7: % of | L7: % of
E8: Adjusted | F8: Apr 24 - | G8: adjusted | H8: Apr 24 - | I8: adjusted | J8: Adjusted | K8: Apr 25 - | L8: adjusted
B9: R thousand | E9: appropriation | F9: Sep 24 | G9: appropriation | H9: Mar 25 | I9: appropriation | J9: appropriation | K9: Sep 25 | L9: appropriation
B10: 1 | C10: The Presidency | E10: 629548 | F10: 323371 | G10: =IF(ISERROR(F10/E10*100),0,F10/E10*100) -> 51.36558293 | H10: 643142 | I10: =IF(ISERROR(H10/E10*100),0,H10/E10*100) -> 102.159327 | J10: 754775 | K10: 367354 | L10: =IF(ISERROR(K10/J10*100),0,K10/J10*100) -> 48.67066344
B11: 2 | C11: Parliament 2 | E11: 2770963 | F11: 0 | G11: 0 | H11: 2770963 | I11: 100 | J11: 3464626 | K11: 0 | L11: 0
B12: 3 | C12: Cooperative Governance | E12: 125895923 | F12: 51824329 | G12: 41.16442198 | H12: 124324617 | I12: 98.75190081 | J12: 132624148 | K12: 54875074 | L12: 41.37638192
B13: 4 | C13: Government Communication and Information System | E13: 760773 | F13: 350053 | G13: 46.0128054 | H13: 744015 | I13: 97.79724044 | J13: 829345 | K13: 426557 | L13: 51.43299833
B14: 5 | C14: Home Affairs | E14: 12095471 | F14: 6923030 | G14: 57.23654746 | H14: 11831851 | I14: 97.82050654 | J14: 14040041 | K14: 7033868 | L14: 50.09862863
B15: 6 | C15: International Relations and Cooperation | E15: 7081231 | F15: 3629329 | G15: 51.25279771 | H15: 7011141 | I15: 99.01020035 | J15: 7309129 | K15: 3897801 | L15: 53.32784522
B16: 7 | C16: National School of Government | E16: 218724 | F16: 110290 | G16: 50.424279 | H16: 216023 | I16: 98.76511037 | J16: 228683 | K16: 106836 | L16: 46.7179458
B17: 8 | C17: National Treasury | E17: 26316835 | F17: 12465389 | G17: 47.36659633 | H17: 25304687 | I17: 96.1539904 | J17: 32040299 | K17: 13732830 | L17: 42.86111687
B18: 9 | C18: Planning, Monitoring and Evaluation | E18: 494044 | F18: 194588 | G18: 39.38677527 | H18: 459239 | I18: 92.95508092 | J18: 514061 | K18: 247618 | L18: 48.16899162
B19: 10 | C19: Electricity and Energy | E19: 6069760 | F19: 2722402 | G19: 44.85188871 | H19: 5981122 | I19: 98.53967867 | J19: 6675452 | K19: 3337526 | L19: 49.99700395
B20: 11 | C20: Public Service and Administration | E20: 539521 | F20: 243501 | G20: 45.13281225 | H20: 509842 | I20: 94.49900931 | J20: 565589 | K20: 257053 | L20: 45.4487269
B21: 12 | C21: Public Service Commission | E21: 288499 | F21: 149575 | G21: 51.84593361 | H21: 288483 | I21: 99.99445405 | J21: 317806 | K21: 151762 | L21: 47.75303172
B22: 13 | C22: Public Works and Infrastructure | E22: 7612081 | F22: 4268565 | G22: 56.07618994 | H22: 7570409 | I22: 99.45255443 | J22: 7647722 | K22: 3598330 | L22: 47.05100421
B23: 14 | C23: Statistics South Africa | E23: 2646160 | F23: 1317617 | G23: 49.7935499 | H23: 2617625 | I23: 98.92164495 | J23: 2855306 | K23: 1374587 | L23: 48.14149517
B24: 15 | C24: Traditional Affairs | E24: 187283 | F24: 91500 | G24: 48.85654331 | H24: 181281 | I24: 96.79522434 | J24: 195530 | K24: 91761 | L24: 46.92937145
B25: 16 | C25: Basic Education | E25: 32635423 | F25: 19174725 | G25: 58.75433268 | H25: 32544497 | I25: 99.72138863 | J25: 38258273 | K25: 21014424 | L25: 54.92779039
B26: 17 | C26: Higher Education | E26: 112773492 | F26: 79694371 | G26: 70.66764502 | H26: 112633770 | I26: 99.87610386 | J26: 116441707 | K26: 65436437 | L26: 56.19673456
B27: 18 | C27: Health | E27: 62225399 | F27: 30718151 | G27: 49.36593657 | H27: 61881821 | I27: 99.44784926 | J27: 65925086 | K27: 32468123 | L27: 49.25002752
B28: 19 | C28: Social Development | E28: 278295933 | F28: 138647836 | G28: 49.82028825 | H28: 275627969 | I28: 99.04132124 | J28: 295225127 | K28: 144366961 | L28: 48.90063473
B29: 20 | C29: Women, Youth and Persons with Disabilities | E29: 1020712 | F29: 669309 | G29: 65.57275706 | H29: 1011019 | I29: 99.05036876 | J29: 1361686 | K29: 671270 | L29: 49.29697449
B30: 21 | C30: Civilian Secretariat for the Police Service | E30: 155964 | F30: 77209 | G30: 49.5043728 | H30: 155449 | I30: 99.66979559 | J30: 172599 | K30: 82978 | L30: 48.07559719
B31: 22 | C31: Correctional Services | E31: 27758903 | F31: 14650075 | G31: 52.77613096 | H31: 28436095 | I31: 102.4395489 | J31: 29223204 | K31: 15533743 | L31: 53.15550957
B32: 23 | C32: Defence | E32: 55506648 | F32: 27232299 | G32: 49.06132865 | H32: 57994082 | I32: 104.4813263 | J32: 59072190 | K32: 30394600 | L32: 51.453315
B33: 24 | C33: Independent Police Investigative Directorate | E33: 370557 | F33: 181730 | G33: 49.04238754 | H33: 370406 | I33: 99.95925053 | J33: 428556 | K33: 196906 | L33: 45.9463874
B34: 25 | C34: Justice and Constitutional Development | E34: 21650239 | F34: 10754999 | G34: 49.67612136 | H34: 21618346 | I34: 99.85268985 | J34: 22945206 | K34: 11818875 | L34: 51.5091257
B35: 26 | C35: Military Veterans | E35: 812406 | F35: 277793 | G35: 34.19386366 | H35: 757805 | I35: 93.27909937 | J35: 878541 | K35: 387305 | L35: 44.08502278
B36: 27 | C36: Office of the Chief Justice | E36: 1273788 | F36: 774090 | G36: 60.7707091 | H36: 1512580 | I36: 118.7466046 | J36: 1620075 | K36: 795359 | L36: 49.0939617
B37: 28 | C37: Police | E37: 113623525 | F37: 57337899 | G37: 50.46305244 | H37: 113623525 | I37: 100 | J37: 120889935 | K37: 57873488 | L37: 47.87287544
B38: 29 | C38: Agriculture | E38: 7915621 | F38: 2737852 | G38: 34.58796221 | H38: 7881940 | I38: 99.57449959 | J38: 7946389 | K38: 2536682 | L38: 31.9224493
B39: 30 | C39: Communications and Digital Technologies | E39: 3968611 | F39: 1393721 | G39: 35.11860951 | H39: 2915163 | I39: 73.45549866 | J39: 3550413 | K39: 1579191 | L39: 44.47907891
B40: 31 | C40: Employment and Labour | E40: 3854842 | F40: 1816608 | G40: 47.12535559 | H40: 3802376 | I40: 98.63895848 | J40: 4285166 | K40: 2611824 | L40: 60.95035758
B41: 32 | C41: Forestry, Fisheries and the Environment | E41: 8794613 | F41: 4414819 | G41: 50.19912758 | H41: 8639568 | I41: 98.23704579 | J41: 9144004 | K41: 3412137 | L41: 37.31556767
B42: 33 | C42: Human Settlements | E42: 33680386 | F42: 14505138 | G42: 43.06701829 | H42: 32849586 | I42: 97.53328243 | J42: 34915325 | K42: 15871068 | L42: 45.45587933
B43: 34 | C43: Mineral and Petroleum Resources | E43: 2948082 | F43: 1559970 | G43: 52.91474253 | H43: 2942781 | I43: 99.82018818 | J43: 2860600 | K43: 1617879 | L43: 56.55733063
B44: 35 | C44: Science, Technology and Innovation | E44: 9441144 | F44: 4391396 | G44: 46.51338863 | H44: 9072707 | I44: 96.0975386 | J44: 9397745 | K44: 5312224 | L44: 56.52658164
B45: 36 | C45: Small Business Development | E45: 2708132 | F45: 1625968 | G45: 60.04020483 | H45: 2668886 | I45: 98.55080919 | J45: 2918122 | K45: 1338440 | L45: 45.86648536
B46: 37 | C46: Sport, Arts and Culture | E46: 6105744 | F46: 2933367 | G46: 48.04274467 | H46: 6072684 | I46: 99.45854264 | J46: 6309944 | K46: 2892515 | L46: 45.84058115
B47: 38 | C47: Tourism | E47: 2380908 | F47: 1438866 | G47: 60.43349848 | H47: 2252143 | I47: 94.59176919 | J47: 2434892 | K47: 1314437 | L47: 53.98337996
B48: 39 | C48: Trade, Industry and Competition | E48: 9395907 | F48: 4745452 | G48: 50.50552331 | H48: 9286992 | I48: 98.84082505 | J48: 11128649 | K48: 5400694 | L48: 48.52964632
B49: 40 | C49: Transport | E49: 86355434 | F49: 39922755 | G49: 46.23073865 | H49: 84956962 | I49: 98.38056283 | J49: 91812270 | K49: 55334825 | L49: 60.26953151
B50: 41 | C50: Water and Sanitation | E50: 23849579 | F50: 11117593 | G50: 46.61546856 | H50: 23815798 | I50: 99.85835809 | J50: 23382735 | K50: 12362240 | L50: 52.86909337
B51: 42 | C51: Land Reform and Rural Development | E51: 9082203 | F51: 5249473 | G51: 57.7995559 | H51: 8163223 | I51: 89.88152984 | J51: 10468071 | K51: 4444356 | L51: 42.45630355
B52: Total | E52: =SUM(E10:E51) -> 1112191011 | F52: 562657003 | G52: 50.58996139 | H52: =SUM(H10:H51) -> 1103942613 | I52: 99.25836498 | J52: =SUM(J10:J51) -> 1183059022 | K52: =SUM(K10:K51) -> 586567938 | L52: 49.58061492
B54: Table 10: Expenditure outcome for 2024/25 and actual expenditure for 2025/26 (continued)
F55: 2024/25 | J55: 2025/26
F56: Outcome | K56: Actual expenditure
G57: Apr 24 - | I57: Apr 24 - | L57: Apr 25 -
G58: Sep 24 | I58: Mar 25 | L58: Sep 25
G59: % of | I59: % of | L59: % of
E60: Adjusted | F60: Apr 24 - | G60: adjusted | H60: Apr 24 - | I60: adjusted | J60: Adjusted | K60: Apr 25 - | L60: adjusted
B61: R thousand | E61: appropriation | F61: Sep 24 | G61: appropriation | H61: Mar 25 | I61: appropriation | J61: appropriation | K61: Sep 25 | L61: appropriation
B62: Plus:
B63: Total direct charges against the National Revenue Fund | E63: =SUM(E64:E76) -> 1043725328 | F63: =SUM(F64:F76) -> 513736031 | G63: 49.22138203 | H63: =SUM(H64:H76) -> 1040702716 | I63: 99.71040159 | J63: =SUM(J64:J76) -> 1129526526 | K63: =SUM(K64:K76) -> 550978739 | L63: =IF(ISERROR(K63/J63*100),0,K63/J63*100) -> 48.77961928
B64: President and deputy president salaries (The Presidency) | E64: 7709 | F64: 2886 | G64: 37.43676223 | H64: 6875 | I64: 89.1814762 | J64: 8098 | K64: 3257 | L64: 40.21980736
B65: Members' remuneration (Parliament) | E65: 713722 | F65: 0 | G65: 0 | H65: 692356 | I65: 97.00639745 | J65: 553100 | K65: 0 | L65: 0
B66: Debt-service costs (National Treasury) | E66: 388854277 | F66: 190269795 | G66: 48.93087366 | H66: 385843718 | I66: 99.22578735 | J66: 421528649 | K66: 206093827 | L66: 48.89200947
B67: Provincial equitable share (National Treasury) | E67: 600475640 | F67: 300237816 | G67: 49.99999933 | H67: 600475640 | I67: 100 | J67: 647580811 | K67: 316582974 | L67: 48.88702207
B68: General fuel levy sharing with metropolitan municipalities (National Treasury) | E68: 16126608 | F68: 5375535 | G68: 33.33332713 | H68: 16126608 | I68: =IF(ISERROR(H68/E68*100),0,H68/E68*100) -> 100 | J68: 16849080 | K68: 5616360 | L68: 33.33333333
B69: National Revenue Fund payments (National Treasury) | E69: 2080165 | F69: 666165 | G69: 32.02462305 | H69: 2147376 | I69: =IF(ISERROR(H69/E69*100),0,H69/E69*100) -> 103.2310418 | J69: 4749412 | K69: 4242412 | L69: 89.32499434
B70: Auditor-General of South Africa (National Treasury) | E70: 128578 | F70: 128578 | G70: 100 | H70: 128578 | I70: =IF(ISERROR(H70/E70*100),0,H70/E70*100) -> 100 | J70: 134338 | K70: 134338 | L70: 100
B71: Public sector related pension, post-retirement medical and other benefits in terms of statutory and collective agreement obligations (National Treasury) | E71: 7003380 | F71: 3560610 | G71: 50.84130805 | H71: 7299775 | I71: 104.2321708 | J71: 8049084 | K71: 3911045 | L71: 48.58993893
B72: Guarantees, indemnities and securities: Payment to the South African Reserve Bank (National Treasury) | E72: 0 | F72: 0 | G72: 0 | H72: 0 | I72: 0 | J72: 118590 | K72: 0 | L72: 0
B73: Skills levy and sector education and training authorities (Higher Education) | E73: 24493292 | F73: 11728301 | G73: =IF(ISERROR(F73/E73*100),0,F73/E73*100) -> 47.8837267 | H73: 24137414 | I73: =IF(ISERROR(H73/E73*100),0,H73/E73*100) -> 98.54703892 | J73: 25978559 | K73: 12494484 | L73: =IF(ISERROR(K73/J73*100),0,K73/J73*100) -> 48.09536972
B74: Magistrates' salaries (Justice and Constitutional Development) | E74: 2495615 | F74: 1143716 | G74: =IF(ISERROR(F74/E74*100),0,F74/E74*100) -> 45.82902411 | H74: 2512754 | I74: =IF(ISERROR(H74/E74*100),0,H74/E74*100) -> 100.6867646 | J74: 2630279 | K74: 1245013 | L74: =IF(ISERROR(K74/J74*100),0,K74/J74*100) -> 47.33387599
B75: Judges' salaries (Office of the Chief Justice and Judicial Administration) | E75: 1333214 | F75: 622629 | G75: =IF(ISERROR(F75/E75*100),0,F75/E75*100) -> 46.70135477 | H75: 1323867 | I75: =IF(ISERROR(H75/E75*100),0,H75/E75*100) -> 99.29891225 | J75: 1332810 | K75: 655029 | L75: =IF(ISERROR(K75/J75*100),0,K75/J75*100) -> 49.14646499
B76: International Oil Pollution Compensation Fund (Transport) | E76: 13128 | F76: 0 | G76: =IF(ISERROR(F76/E76*100),0,F76/E76*100) -> 0 | H76: 7755 | I76: =IF(ISERROR(H76/E76*100),0,H76/E76*100) -> 59.07221207 | J76: 13716 | K76: 0 | L76: =IF(ISERROR(K76/J76*100),0,K76/J76*100) -> 0
B78: Total | E78: =SUM(E52+E63) -> 2155916339 | F78: =SUM(F52+F63) -> 1076393034 | G78: 49.92740277 | H78: =SUM(H52+H63) -> 2144645329 | I78: 99.47720559 | J78: =SUM(J52+J63) -> 2312585548 | K78: =SUM(K52+K63) -> 1137546677 | L78: =IF(ISERROR(K78/J78*100),0,K78/J78*100) -> 49.18938796
B79: Economic classification
B80: Current payments
B81: Compensation of employees | E81: 205664631 | F81: 101719265 | G81: =IF(ISERROR(F81/E81*100),0,F81/E81*100) -> 49.45880315 | H81: 206270539 | I81: =IF(ISERROR(H81/E81*100),0,H81/E81*100) -> 100.2946097 | J81: 217629982 | K81: 107811695 | L81: =IF(ISERROR(K81/J81*100),0,K81/J81*100) -> 49.53898999
B82: Goods and services | E82: 84053815 | F82: 38577229.6 | G82: 45.89586993 | H82: 80792819 | I82: 96.12034742 | J82: 89876928 | K82: 40434192 | L82: =IF(ISERROR(K82/J82*100),0,K82/J82*100) -> 44.98840014
B83: Interest and rent on land | E83: 389130987 | F83: 190435299 | G83: 48.93861074 | H83: 386175161 | I83: 99.24040333 | J83: 421838647 | K83: 206267932 | L83: 48.89735293
B84: Total current payments | E84: =SUM(E81:E83) -> 678849433 | F84: =SUM(F81:F83) -> 330731793.6 | G84: 48.7194623 | H84: =SUM(H81:H83) -> 673238519 | I84: 99.17346709 | J84: =SUM(J81:J83) -> 729345557 | K84: =SUM(K81:K83) -> 354513819 | L84: =IF(ISERROR(K84/J84*100),0,K84/J84*100) -> 48.60711299
B85: Transfers and subsidies
B86: Provinces and municipalities | E86: 901285167 | F86: 434593844 | G86: =IF(ISERROR(F86/E86*100),0,F86/E86*100) -> 48.21934943 | H86: 898624747 | I86: =IF(ISERROR(H86/E86*100),0,H86/E86*100) -> 99.70481929 | J86: 967876781 | K86: 460721731 | L86: =IF(ISERROR(K86/J86*100),0,K86/J86*100) -> 47.60127942
B87: Departmental agencies and accounts | E87: 171596983 | F87: 99064150 | G87: 57.73070614 | H87: 169327841 | I87: 98.67763293 | J87: 177365401 | K87: 96148825 | L87: 54.20945937
B88: Higher education institutions | E88: 52303895 | F88: 38206852 | G88: 73.04781413 | H88: 52650194 | I88: 100.6620903 | J88: 53230072 | K88: 29406105 | L88: 55.2434064
B89: Foreign governments and international organisations | E89: 3155920 | F89: 692456 | G89: 21.94149408 | H89: 3438067 | I89: 108.9402456 | J89: 3681403 | K89: 1126635 | L89: 30.60341397
B90: Public corporations and private enterprises | E90: 37840095 | F90: 19153517 | G90: 50.61698973 | H90: 37921848 | I90: 100.2160486 | J90: 44213532 | K90: 29941650 | L90: 67.72055668
B91: Non-profit institutions | E91: 3078625 | F91: 1384724 | G91: 44.97865118 | H91: 3276388 | I91: 106.4237444 | J91: 3327048 | K91: 1065985 | L91: 32.03996456
B92: Households | E92: 283364302 | F92: 143168987 | G92: 50.5247083 | H92: 281173014 | I92: 99.22668876 | J92: 302631431 | K92: 147089351 | L92: 48.60346148
B93: Total transfers and subsidies | E93: =SUM(E86:E92) -> 1452624987 | F93: =SUM(F86:F92) -> 736264530 | G93: 50.68510707 | H93: =SUM(H86:H92) -> 1446412099 | I93: 99.57229925 | J93: =SUM(J86:J92) -> 1552325668 | K93: =SUM(K86:K92) -> 765500282 | L93: 49.31312403
B94: Payments for capital assets
B95: Buildings and other fixed structures | E95: 11156190 | F95: 4991558 | G95: =IF(ISERROR(F95/E95*100),0,F95/E95*100) -> 44.74249721 | H95: 10242557 | I95: =IF(ISERROR(H95/E95*100),0,H95/E95*100) -> 91.8105285 | J95: 13512042 | K95: 4704305 | L95: =IF(ISERROR(K95/J95*100),0,K95/J95*100) -> 34.81564815
B96: Machinery and equipment | E96: 4346573 | F96: 1905833 | G96: 43.84679609 | H96: 4913021 | I96: 113.03206 | J96: 4353074 | K96: 1694612 | L96: 38.92908781
B97: Heritage assets | E97: 172637 | F97: 48689 | G97: 28.20310826 | H97: 122021 | I97: 70.6806768 | J97: 66550 | K97: 0 | L97: 0
B98: Specialised military assets | E98: 20981 | F98: 0 | G98: 0 | H98: 2744 | I98: 13.07849959 | J98: 20623 | K98: 1874 | L98: 9.086941764
B99: Biological assets | E99: 9114 | F99: 1498 | G99: 16.43625192 | H99: 2680 | I99: 29.40531051 | J99: 6776 | K99: 1251 | L99: 18.4622196
B100: Land and subsoil assets | E100: 415034 | F100: 674548.4 | G100: 162.5284675 | H100: 725348 | I100: 174.7683322 | J100: 402649 | K100: 202741 | L100: 50.35179524
B101: Software and other intangible assets | E101: 198777 | F101: 188478 | G101: 94.81881707 | H101: 594700 | I101: 299.1794825 | J101: 302512 | K101: 210149 | L101: 69.46798805
B102: Total payments for capital assets | E102: =SUM(E95:E101) -> 16319306 | F102: =SUM(F95:F101) -> 7810604.4 | G102: 47.86113086 | H102: =SUM(H95:H101) -> 16603071 | I102: 101.7388301 | J102: =SUM(J95:J101) -> 18664226 | K102: =SUM(K95:K101) -> 6814932 | L102: 36.5133384
B103: Total payments for financial assets | E103: 8122613 | F103: 1586106 | G103: 19.52704136 | H103: 8391640 | I103: 103.3120746 | J103: 12250097 | K103: 9474004 | L103: 77.33819577
B104: Balance conversion journals to be passed | K104: 1243640 | L104: 0
B105: Total | E105: =+E84+E93+E102+E103 -> 2155916339 | F105: =SUM(F103+F102+F93+F84) -> 1076393034 | G105: 49.92740277 | H105: =SUM(H103+H102+H93+H84) -> 2144645329 | I105: 99.47720559 | J105: =SUM(J103+J102+J93+J84) -> 2312585548 | K105: =SUM(K103+K102+K93+K84+K104) -> 1137546677 | L105: 49.18938796
B106: 1. The standard chart of accounts was updated from version 5 to version 6 at beginning of 2025/26. Although all departments transitioned to the new version from 1 April 2025, some transactions were permitted to be loaded through version 5 to ensure they were processed timeously. The latest section 32 Public Finance Management Act (1999) report published online reflects transactions on both standard chart of accounts versions 5 and 6, whereas the in-year monitoring data, used for the AENE, includes only version 6 transactions. As outstanding balance conversion journals are still to be processed in the basic accounting system, figures may differ. Once the version 5 balance conversion has been completed, version 6 financial data will reflect accurately.
B107: 2. Amendments to Parliament’s budget are determined independently of the national government’s budget processes in accordance with the Financial Management of Parliament and Provincial Legislatures Act (2009), as amended.

Sheet Table 11
B2: Table 11: Departmental receipts per vote
B3: Vote number and title | F3: 2024/25 | J3: 2025/26
F4: Outcome | L4: Actual receipts
G5: Apr 24 – | I5: Apr 24 – | M5: Apr 25 –
G6: Sep 24 | I6: Mar 25 | M6: Sep 25
G7: % of | I7: % of | M7: % of
E8: Adjusted | F8: Apr 24 – | G8: adjusted | H8: Apr 24 – | I8: adjusted | J8: Budget | K8: Adjusted | L8: Apr 25 – | M8: adjusted
B9: R thousand | E9: estimate | F9: Sep 24 | G9: estimate | H9: Mar 25 | I9: estimate | J9: estimate | K9: estimate | L9: Sep 25 | M9: estimate
B10: 1 | C10: The Presidency | E10: 439 | F10: 254 | G10: =IF(ISERROR((F10/E10)*100),0,(F10/E10)*100) -> 57.85876993 | H10: 407 | I10: =IF(ISERROR(H10/$E10*100),0,H10/$E10*100) -> 92.71070615 | J10: 367 | K10: 582 | L10: 334 | M10: =IF(ISERROR(L10/$K10*100),0,L10/$K10*100) -> 57.38831615
B11: 2 | C11: Parliament 1 | E11: 0 | F11: 0 | G11: =IF(ISERROR((F11/E11)*100),0,(F11/E11)*100) -> 0 | H11: 0 | I11: 0 | J11: 0 | K11: 0 | L11: 0 | M11: 0
B12: 3 | C12: Cooperative Governance | E12: 4191 | F12: 2929 | G12: =IF(ISERROR((F12/E12)*100),0,(F12/E12)*100) -> 69.88785493 | H12: 5165 | I12: 123.2402768 | J12: 3200 | K12: 3409 | L12: 1591 | M12: 46.67057788
B13: 4 | C13: Government Communication and Information System | E13: 19642 | F13: 11419 | G13: 58.13562774 | H13: 13600 | I13: 69.23938499 | J13: 793 | K13: 3468 | L13: 2930 | M13: 84.48673587
B14: 5 | C14: Home Affairs | E14: 1601535 | F14: 529399 | G14: 33.05572466 | H14: 1415757 | I14: 88.40000375 | J14: 1681611 | K14: 2523079 | L14: 602578 | M14: 23.88264497
B15: 6 | C15: International Relations and Cooperation | E15: 58417 | F15: 30270 | G15: 51.81710803 | H15: 191591 | I15: 327.9713097 | J15: 59350 | K15: 71981 | L15: 47170 | M15: 65.53118184
B16: 7 | C16: National School of Government | E16: 332 | F16: 146 | G16: 43.97590361 | H16: 284 | I16: 85.54216867 | J16: 334 | K16: 384 | L16: 117 | M16: 30.46875
B17: 8 | C17: National Treasury | E17: 17322095 | F17: 10189392 | G17: 58.8230927 | H17: 18960334 | I17: 109.4575108 | J17: 9008378 | K17: 10721875 | L17: 7727862 | M17: 72.07565841
B18: 9 | C18: Planning, Monitoring and Evaluation | E18: 1112 | F18: 230 | G18: 20.68345324 | H18: 1914 | I18: 172.1223022 | J18: 940 | K18: 322 | L18: 321 | M18: 99.68944099
B19: 10 | C19: Electricity and Energy | E19: 908 | F19: 414 | G19: 45.59471366 | H19: 310 | I19: 34.14096916 | J19: 901 | K19: 252 | L19: 96 | M19: 38.0952381
B20: 11 | C20: Public Service and Administration | E20: 1161 | F20: 939 | G20: 80.87855297 | H20: 1184 | I20: 101.9810508 | J20: 848 | K20: 589 | L20: 232 | M20: 39.38879457
B21: 12 | C21: Public Service Commission | E21: 235 | F21: 122 | G21: 51.91489362 | H21: 261 | I21: 111.0638298 | J21: 345 | K21: 83 | L21: 83 | M21: 100
B22: 13 | C22: Public Works and Infrastructure | E22: 3738 | F22: 2770 | G22: 74.10379882 | H22: 17238 | I22: 461.1556982 | J22: 1671 | K22: 7601 | L22: 1894 | M22: 24.91777398
B23: 14 | C23: Statistics South Africa | E23: 1106 | F23: 583 | G23: 52.7124774 | H23: 2219 | I23: 200.6329114 | J23: 1033 | K23: 1352 | L23: 853 | M23: 63.09171598
B24: 15 | C24: Traditional Affairs | E24: 27 | F24: 27 | G24: 100 | H24: 60 | I24: 222.2222222 | J24: 60 | K24: 60 | L24: 31 | M24: 51.66666667
B25: 16 | C25: Basic Education | E25: 11088 | F25: 4055 | G25: 36.57106782 | H25: 11919 | I25: 107.4945887 | J25: 11280.5 | K25: 15418 | L25: 8841 | M25: 57.34206771
B26: 17 | C26: Higher Education | E26: 28923 | F26: 7253 | G26: 25.0769284 | H26: 876177 | I26: 3029.343429 | J26: 18373 | K26: 18373 | L26: 8636 | M26: 47.00375551
B27: 18 | C27: Health | E27: 297036 | F27: 215506 | G27: 72.55214856 | H27: 660624 | I27: 222.405365 | J27: 14155 | K27: 249387 | L27: 124693 | M27: 49.99979951
B28: 19 | C28: Social Development | E28: 31745 | F28: 271 | G28: 0.8536777445 | H28: 41969 | I28: 132.2066467 | J28: 31872 | K28: 32078 | L28: 290 | M28: 0.9040463869
B29: 20 | C29: Women, Youth and Persons with Disabilities | E29: 281 | F29: 261 | G29: 92.88256228 | H29: 550 | I29: 195.7295374 | J29: 65 | K29: 180 | L29: 110 | M29: 61.11111111
B30: 21 | C30: Civilian Secretariat for the Police Service | E30: 162 | F30: 135 | G30: 83.33333333 | H30: 171 | I30: 105.5555556 | J30: 74 | K30: 80 | L30: 39 | M30: 48.75
B31: 22 | C31: Correctional Services | E31: 167345 | F31: 108095 | G31: 64.594102 | H31: 216507 | I31: 129.377633 | J31: 232755.3093 | K31: 234031 | L31: 107874 | M31: 46.09389354
B32: 23 | C32: Defence | E32: 1319314 | F32: 754066 | G32: 57.15591588 | H32: 2028080 | I32: 153.7223133 | J32: 1345701 | K32: 1345701 | L32: 913948 | M32: 67.91612699
B33: 24 | C33: Independent Police Investigative Directorate | E33: 2498 | F33: 2396 | G33: 95.91673339 | H33: 3581 | I33: 143.3546837 | J33: 402 | K33: 402 | L33: 95 | M33: 23.6318408
B34: 25 | C34: Justice and Constitutional Development | E34: 530431.3 | F34: 265254 | G34: 50.00722997 | H34: 556164 | I34: 104.8512786 | J34: 562461 | K34: 521514 | L34: 260756 | M34: 49.99980825
B35: 26 | C35: Military Veterans | E35: 1915 | F35: 1915 | G35: 100 | H35: 2160 | I35: 112.7937337 | J35: 630 | K35: 644 | L35: 279 | M35: 43.32298137
B36: 27 | C36: Office of the Chief Justice | E36: 4354 | F36: 1406 | G36: 32.29214515 | H36: 2290 | I36: 52.59531465 | J36: 4400 | K36: 4400 | L36: 3330 | M36: 75.68181818
B37: 28 | C37: Police | E37: 588980 | F37: 422206 | G37: 71.68426772 | H37: 805960 | I37: 136.8399606 | J37: 530071 | K37: 701833 | L37: 436420 | M37: 62.18288396
B38: 29 | C38: Agriculture | E38: 319362 | F38: 182341 | G38: 57.09539645 | H38: 354857 | I38: 111.1143467 | J38: 361690 | K38: 332735 | L38: 175556 | M38: 52.7615069
B39: 30 | C39: Communications and Digital Technologies | E39: 2508 | F39: 1694 | G39: 67.54385965 | H39: 3159 | I39: 125.9569378 | J39: 2633 | K39: 543602 | L39: 542351 | M39: 99.7698684
B40: 31 | C40: Employment and Labour | E40: 29676 | F40: 14286 | G40: 48.13991104 | H40: 33020 | I40: 111.268365 | J40: 32221 | K40: 31002 | L40: 13176 | M40: 42.50048384
B41: 32 | C41: Forestry, Fisheries and the Environment | E41: 34458 | F41: 23083 | G41: 66.98879796 | H41: 81033 | I41: 235.1645481 | J41: 91955 | K41: 33572 | L41: 16861 | M41: 50.22340045
B42: 33 | C42: Human Settlements | E42: 1646 | F42: 1022 | G42: 62.08991495 | H42: 1694 | I42: 102.9161604 | J42: 423 | K42: 616 | L42: 454 | M42: 73.7012987
B43: 34 | C43: Mineral and Petroleum Resources | E43: 43966 | F43: 29881 | G43: 67.96388118 | H43: 53562 | I43: 121.8259564 | J43: 58967 | K43: 58967 | L43: 25214 | M43: 42.75950956
B44: 35 | C44: Science, Technology and Innovation | E44: 3152 | F44: 3438 | G44: 109.0736041 | H44: 5361 | I44: 170.0824873 | J44: 783 | K44: 883 | L44: 92 | M44: 10.41902605
B45: 36 | C45: Small Business Development | E45: 330 | F45: 296 | G45: 89.6969697 | H45: 503835 | I45: 152677.2727 | J45: 74 | K45: 326 | L45: 259 | M45: 79.44785276
B46: 37 | C46: Sport, Arts and Culture | E46: 5637 | F46: 1010 | G46: 17.91733191 | H46: 7380 | I46: 130.9207025 | J46: 6237 | K46: 8474 | L46: 8041 | M46: 94.89025254
B47: 38 | C47: Tourism | E47: 43060 | F47: 22936 | G47: 53.26521133 | H47: 92858 | I47: 215.6479331 | J47: 3045 | K47: 32915 | L47: 27767 | M47: 84.35971442
B48: 39 | C48: Trade, Industry and Competition | E48: 204892 | F48: 78080 | G48: 38.10788123 | H48: 222150 | I48: 108.4229741 | J48: 220122 | K48: 220195 | L48: 67380 | M48: 30.60014987
B49: 40 | C49: Transport | E49: 830054 | F49: 828584 | G49: 99.82290309 | H49: 831300 | I49: 100.1501107 | J49: 3135 | K49: 3877 | L49: 2711 | M49: 69.9251999
B50: 41 | C50: Water and Sanitation | E50: 4733 | F50: 2171 | G50: 45.86942742 | H50: 39902 | I50: 843.0593704 | J50: 5370 | K50: 4418 | L50: 2134 | M50: 48.30239928
B51: 42 | C51: Land Reform and Rural Development | E51: 100322 | F51: 53617 | G51: 53.4449074 | H51: 83721 | I51: 83.45228365 | J51: 79817 | K51: 33528 | L51: 17207 | M51: 51.3212837
B53: Total departmental receipts as per Adjusted Estimates of National Expenditure | E53: =SUM(E10:E51) -> 23622806.3 | F53: 13794152 | G53: =IF(ISERROR(F53/$E53*100),0,F53/$E53*100) -> 58.39336709 | H53: =SUM(H10:H51) -> 28130308 | I53: =IF(ISERROR(H53/$E53*100),0,H53/$E53*100) -> 119.0811441 | J53: =SUM(J10:J51) -> 14378542.81 | K53: =SUM(K10:K51) -> 17764188 | L53: =SUM(L10:L51) -> 11150606 | M53: =IF(ISERROR(L53/$K53*100),0,L53/$K53*100) -> 62.77014182
B54: Plus: Sale of non-core assets | E54: =SUM(E55:E55) -> 4000000 | F54: 0 | G54: =IF(ISERROR(F54/$E54*100),0,F54/$E54*100) -> 0 | H54: 0 | I54: 0 | J54: 0 | K54: 4000000 | L54: 0 | M54: 0 | N54: =SUM(N55:N55) -> 0
B55: Strategic oil reserves | E55: 4000000 | F55: 0 | G55: 0 | H55: 0 | I55: 0 | J55: 0 | K55: 4000000 | L55: 0 | M55: 0
B56: Plus: Public entities conduit 2 receipts | E56: =+E57+E58+E59 -> 6125985 | F56: =+F57+F58 -> 1060744.034 | G56: =IF(ISERROR(F56/$E56*100),0,F56/$E56*100) -> 17.31548533 | H56: =+H57+H58+H59 -> 11806280 | I56: 192.7245986 | J56: =+J57+J58+J59 -> 7778733 | K56: =+K57+K58+K59 -> 7778733 | L56: =+L57+L58 -> 1258963.121 | M56: 16.18468099
B57: Independent Communications Authority of South Africa | E57: 2142549 | F57: 1060744.034 | G57: =IF(ISERROR(F57/$E57*100),0,F57/$E57*100) -> 49.50850758 | H57: 7763649 | I57: 362.3557268 | J57: 2228251 | K57: 2228251 | L57: 1179399.121 | M57: 52.92936574
B58: Competition Commission | E58: 177712 | F58: 0 | G58: 0 | H58: 236907 | I58: 133.309512 | J58: 74400 | K58: 74400 | L58: 79564 | M58: 106.9408602
B59: SANRAL: Scrapping of E-tolls | E59: 3805724 | F59: 0 | G59: 0 | H59: 3805724 | I59: 100 | J59: 5476082 | K59: 5476082 | L59: 5476082 | M59: 100
B60: Plus: Mineral royalties, mining leases and ownership | E60: 12730102.04 | F60: 5858839.794 | G60: 46.02351007 | H60: 15979465 | I60: 125.5250347 | J60: 11200855.49 | K60: 7382700 | L60: 3157338.476 | M60: 42.76671782
B61: Total departmental and other receipts | E61: =SUM(E53+E54+E56+E60) -> 46478893.34 | F61: =SUM(F53+F54+F56+F60) -> 20713735.83 | G61: =IF(ISERROR(F61/$E61*100),0,F61/$E61*100) -> 44.56589721 | H61: =SUM(H53+H54+H56+H60) -> 55916053 | I61: 120.3041832 | J61: =SUM(J53+J54+J56+J60) -> 33358131.3 | K61: =SUM(K53+K54+K56+K60) -> 36925621 | L61: =SUM(L53+L54+L56+L60) -> 15566907.6 | M61: 42.15747001
B62: 1. Amendments to Parliaments’ budget are determined independently of the national government’s budget processes in accordance with the Financial Management of Parliament and Provincial Legislatures Act (2009) as amended.
B63: 2. Receipts for which a department serves as a conduit to deposit funds into the National Revenue Fund and hence included as other receipts for consolidation purposes. These receipts are, however, accordingly excluded from departmental financial statements.
B65: Direct receipts into the National Revenue Fund
B66: Vote number and title | F66: 2024/25 | J66: 2025/26
F67: Audited outcome | L67: Actual receipts
G68: Apr 24 – | I68: Apr 24 – | M68: Apr 25 –
G69: Sep 24 | I69: Mar 25 | M69: Sep 25
G70: % of | I70: % of | M70: % of
E71: Adjusted | F71: Apr 24 – | G71: adjusted | H71: Apr 24 – | I71: adjusted | J71: Budget | K71: Adjusted | L71: Apr 25 – | M71: adjusted
B72: R thousand | E72: estimate | F72: Sep 24 | G72: estimate | H72: Mar 25 | I72: estimate | J72: estimate | K72: estimate | L72: Sep 25 | M72: estimate
C73: National Revenue Fund Receipts | E73: =+E85 -> 0 | F73: 0 | G73: =IF(ISERROR(F73/$E73*100),0,F73/$E73*100) -> 0 | H73: 0 | I73: =IF(ISERROR(H73/$E73*100),0,H73/$E73*100) -> 0 | J73: 0 | K73: 0 | L73: 0 | M73: =IF(ISERROR(L73/$K73*100),0,L73/$K73*100) -> 0
C74: National Treasury | E74: =SUM(E75:E84) -> 8912921 | F74: 7067704 | G74: 79.29728088 | H74: =SUM(H75:H84) -> 8461732 | I74: 94.93780995 | J74: =SUM(J75:J84) -> 1478000 | K74: 1935109 | L74: 1935109 | M74: 100
C75: Revaluation of profits on foreign currency transactions | E75: 7333970 | F75: 6732970 | G75: 91.80525691 | H75: 7020639 | I75: 95.72767546 | J75: 1478000 | K75: 181525 | L75: 181525 | M75: 100
C76: Premiums on loan transactions | E76: 330310 | F76: 330310 | G76: 100 | H76: 1194228 | I76: 361.5476371 | J76: 0 | K76: 1137263 | L76: 1137263 | M76: 100
C77: Profit on switch transactions | E77: 0 | F77: 0 | G77: 0 | H77: 0 | I77: 0 | J77: 0 | K77: -56545 | L77: -56545 | M77: 100
C78: Other (mainly penalties on retail bonds and profit on script lending) | E78: 4424 | F78: 4424 | G78: 100 | H78: 8128 | I78: 183.7251356 | J78: 0 | K78: 6436 | L78: 6436 | M78: 100
C79: Premiums on debt portfolio restructuring (switches) | E79: 0 | F79: 0 | G79: 0 | H79: 238737 | I79: 0 | J79: 0 | K79: 666430 | L79: 666430 | M79: 100
C80: International Monetary Fund revaluation profits | E80: 0 | F80: 0 | G80: 0 | H80: 0 | I80: 0 | J80: 0 | K80: 0 | L80: 0 | M80: 0
C81: Conditional grant refunds | E81: 1244217 | F81: 0 | G81: 0 | H81: 0 | I81: 0 | J81: 0 | K81: 0 | L81: 0 | M81: 0
C82: Interest on Eskom loan | E82: 0 | F82: 0 | G82: 0 | H82: 0 | I82: 0 | J82: 0 | K82: 0 | L82: 0 | M82: 0
C83: List item | E83: 0 | F83: 0 | G83: 0 | H83: 0 | I83: 0 | J83: 0 | K83: 0 | L83: 0 | M83: 0
C84: List item | E84: 0 | F84: 0 | G84: 0 | H84: 0 | I84: 0 | J84: 0 | K84: 0 | L84: 0 | M84: 0
C85: Total | G85: 0 | I85: 0 | M85: 0
C90: ENE 2024
C91: Total departmental receipts as per Adjusted Estimates of National Expenditure
C92: Deviation
C94: Less: Parliament (retained departmental receipts)
C95: Deviation
C97: Plus: South African Revenue Services
C98: Deviation
C100: Total departmental receipts as per Medium Term Budget Policy Statement
C101: Deviation

Sheet Table 11.1
B2: Table 11.1: Departmental receipts per economic classification
B3: Economic classification | E3: 2024/25 | I3: 2025/26
E4: Outcome | K4: Actual receipts
F5: Apr 24 – | H5: Apr 24 – | L5: Apr 25 –
F6: Sep 24 | H6: Mar 25 | L6: Sep 25
F7: % of | H7: % of | L7: % of
D8: Adjusted | E8: Apr 24 – | F8: adjusted | G8: Apr 24 – | H8: adjusted | I8: Budget | J8: Adjusted | K8: Apr 25 – | L8: adjusted
B9: R thousand | D9: estimate | E9: Sep 24 | F9: estimate | G9: Mar 25 | H9: estimate | I9: estimate | J9: estimate | K9: Sep 25 | L9: estimate
B10: Departmental receipts
B11: Tax receipts | D11: 8000 | E11: 2723 | F11: =IF(ISERROR(E11/D11*100),0,E11/D11*100) -> 34.0375 | G11: 8134 | H11: =IF(ISERROR(G11/D11*100),0,G11/D11*100) -> 101.675 | I11: 8110 | J11: 8125 | K11: 2783 | L11: =IF(ISERROR(K11/$J11*100),0,K11/$J11*100) -> 34.25230769
B12: Sales of goods and services produced by department | D12: 3717606.7 | E12: 1932471 | F12: 51.98158805 | G12: 3904705 | H12: 105.0327621 | I12: 3293329.213 | J12: 4392763 | K12: 1623139 | L12: 36.95029757
B13: Sales of scrap, waste, arms and other used current goods | D13: 8447.9 | E13: 5935 | F13: 70.254146 | G13: 14315 | H13: 169.450396 | I13: 8726.346 | J13: 9917 | K13: 5760 | L13: 58.08208127
B14: Transfers received | D14: 693304 | E14: 503963 | F14: 72.6900465 | G14: 1414463 | H14: 204.0177181 | I14: 706125 | J14: 724241 | K14: 655911 | L14: 90.56529525
B15: Fines, penalties and forfeits | D15: 312409 | E15: 188824 | F15: 60.4412805 | G15: 384530 | H15: 123.0854425 | I15: 396826.65 | J15: 416068 | K15: 224159 | L15: 53.87556842
B16: Interest, dividends and rent on land | D16: 8818881 | E16: 3667581 | F16: 41.5878273 | G16: 11280364 | H16: 127.9115117 | I16: 7428729.3 | J16: 9236749 | K16: 6349824 | L16: 68.74522627
B17: Sales of capital assets | D17: 169033 | E17: 97972 | F17: 57.96027995 | G17: 350182 | H17: 207.1678311 | I17: 144017.7 | J17: 156754 | K17: 71062 | L17: 45.33345242
B18: Transactions in financial assets and liabilities | D18: 9895124.7 | E18: 7394683 | F18: 74.73056909 | G18: 10773615 | H18: 108.8780114 | I18: 2392678.6 | J18: 2819571 | K18: 2217968 | L18: 78.66331438
B19: Total departmental receipts as per Adjusted Estimates of National Expenditure | D19: =SUM(D11:D18) -> 23622806.3 | E19: 13794152 | F19: 58.39336709 | G19: =SUM(G11:G18) -> 28130308 | H19: 119.0811441 | I19: =SUM(I11:I18) -> 14378542.81 | J19: =SUM(J11:J18) -> 17764188 | K19: =SUM(K11:K18) -> 11150606 | L19: 62.77014182

Sheet Confirmed by Debra (hidden)
B1: Table 1: 2024/25 adjusted national budget
D2: Appropriation (ENE) | F2: Special appropriation | H2: Adjustments appropriation (AENE) | J2: Adjusted appropriation
B4: R thousand
N5: Check
B6: Appropriation by vote | D6: 1102797941 | H6: =+H7+H8+H9+H10+H11+H12 -> 11279804 | J6: =+D6+F6+H6 -> 1114077745 | N6: 11279804 | O6: 1119194391 | P6: =+J6-O6 -> -5116646
B7: Unforeseeable and unavoidable expenditure | H7: 2133031
B8: Section 16 of the PFMA | H8: 2100000
B9: Expenditure earmarked in the 2024 Budget for future allocation | H9: 2661000
B10: Roll-overs | H10: 2051349
B11: Self-financing expenditure | H11: 2576424
B12: Declared unspent funds | H12: -242000
B13: Direct charges against the National Revenue Fund | D13: 1027598529 | H13: 9123419 | J13: =+D13+H13 -> 1036721948 | N13: 9123419 | O13: 1036721948 | P13: =+J13-O13 -> 0
B14: Of which:
B15: Members' remuneration | D15: 492893 | H15: 220829 | J15: =+D15+H15 -> 713722
B16: Debt-service costs | D16: 382182875 | H16: 6671402 | J16: 388854277
B17: National Revenue Fund payments | D17: 0 | H17: 2080165 | J17: 2080165
B18: Skills levy and sector education and training authorities | D18: 24500269 | H18: -6977 | J18: 24493292
B19: Judges' salaries | D19: 1175214 | H19: 158000 | J19: 1333214
N20: Check
B21: Subtotal | D21: =+D6+D13 -> 2130396470 | E21: =+E6+E13 -> 0 | G21: =+G6+G13 -> 0 | H21: =SUM(H13,H6) -> 20403223 | J21: =+J6+J13 -> 2150799693 | N21: 20403223 | O21: 2155916339 | P21: =+N21-H21 -> 0
B22: Provisional allocations not assigned to votes | D22: 570225 | H22: -570225 | J22: =+D22+H22 -> 0
B23: Contingency reserve | D23: 5000000 | H23: -5000000 | J23: =+D23+H23 -> 0
B24: National government projected underspending | D24: 0 | H24: -914094 | J24: =+D24+H24 -> -914094
B25: Local government repayment to the National Revenue Fund | D25: 0 | H25: -2000000 | J25: =+D25+H25 -> -2000000 | N25: Check
B26: Total adjustments expenditure estimate | D26: =SUM(D21:D25) -> 2135966695 | E26: 0 | G26: 0 | H26: 11918904 | I26: 0 | J26: 2147885599 | N26: 11918904 | O26: 2153002245 | P26: =+J26-O26 -> -5116646
B27: Special Appropriation Bill, 2024 | D27: 0 | F27: 5116646 | H27: 0 | J27: =+D27+F27+H27 -> 5116646
B28: Total estimate expenditure | D28: =+D26+D27 -> 2135966695 | E28: 0 | F28: 5116646 | G28: 0 | H28: 11918904 | I28: 0 | J28: 2153002245 | N28: 11918904 | O28: 2153002245
B29: Main budget revenue | D29: =SUM(D30:D32) -> 1815020326 | F29: =SUM(F30:F32) -> 0 | H29: =SUM(H30:H32) -> -17651967 | J29: =+D29+H29 -> 1797368359 | N29: =+N30+N31+N32 -> 1797368359 | O29: =+O30+O31+O32 -> 1797368359 | P29: =+N29-O29 -> -0.3320481777
B30: Tax revenue | D30: 1863034832 | F30: 0 | H30: -22271230 | J30: =+D30+H30 -> 1840763602 | N30: 1840763602 | O30: 1840763602 | P30: -0.4218349457
B31: Non-tax revenue | D31: 41856389 | F31: 0 | H31: 4622483 | J31: =+D31+H31 -> 46478872 | N31: 46478872.29 | O31: 46478872 | P31: 0.2924409658
B32: Less: Estimate of Southern Africa Customs Union payments | D32: -89870895 | F32: 0 | H32: -3220 | J32: =+D32+H32 -> -89874115 | N32: -89874115.2 | O32: -89874115 | P32: -0.2026541233
P33: 0
B34: Budget balance | D34: =+D29-D28 -> -320946369 | E34: =+E29-E26 -> 0 | F34: =+F29-F28 -> -5116646 | G34: =+G29-G26 -> 0 | H34: =+H29-H28 -> -29570871 | I34: 0 | J34: -355633886 | N34: =+D34+H34+F34 -> -355633886 | O34: =+O29-O28 -> -355633886 | P34: 0
N35: -355633886
D36: ='table 1'!D44 -> -320946369.1 | E36: ='table 1'!E44 -> 0 | F36: ='table 1'!F44 -> -5116646 | G36: ='table 1'!G44 -> 0 | H36: ='table 1'!H44 -> -29570871.24 | I36: ='table 1'!I44 -> 0 | J36: ='table 1'!J44 -> -355633886.3 | N36: =+N35-J34 -> -0.008496046066 | O36: Deviation
D37: =+D34-D36 -> 0.09451961517 | E37: 0 | F37: 0 | G37: 0 | H37: 0.2375285625 | I37: 0 | J37: 0.3320481777
B41: Checks with FF
B42: Total estimate expenditure | D42: 2135966695 | H42: 17035549.85 | J42: 2153002245
B43: Main budget revenue | D43: 1815020326 | H43: -17651967.24 | J43: 1797368359
B44: Tax revenue | D44: 1863034832 | H44: -22271230.11 | J44: 1840763602
B45: Non-tax revenue | D45: 41856389.23 | H45: 4622483.06 | J45: 46478872.29
B46: Less: Estimate of Southern Africa Customs Union payments | D46: -89870895.02 | H46: -3220.185688 | J46: -89874115.2
B47: Budget balance | D47: -320946368.9 | H47: -34687517.09 | J47: -355633886
B49: Differences
B50: Total estimate expenditure | D50: =D28-D42 -> 0.174084425 | H50: =(F28+H28)-H42 -> 0.1494677067 | J50: =J28-J42 -> 0.3235521317
B51: Main budget revenue | D51: =D29-D43 -> 0.09451961517 | H51: =H29-H43 -> 0.2375285625 | J51: =J29-J43 -> 0.3320481777
B52: Tax revenue | D52: 0.3098464012 | H52: =H30-H44 -> 0.1119885445 | J52: =J30-J44 -> 0.4218349457
B53: Non-tax revenue | D53: -0.2322926223 | H53: -0.06014834438 | J53: -0.2924409658
B54: Less: Estimate of Southern Africa Customs Union payments | D54: 0.01696576178 | H54: 0.1856883615 | J54: 0.2026541233
B55: Budget balance | D55: =D34-D47 -> -0.0795648098 | H55: =(F34+H34)-H47 -> 0.08806085587 | J55: =J34-J47 -> 0.008496046066
